fUSD/lending_fUSD_20241114
["ID","MTS","AMOUNT","RATE_DAILY","PERIOD"]
[342180707,1731551437944,-420.0,9.868e-05,2]
[342180708,1731551437954,-200.0,9.9e-05,2]
[342180709,1731551437963,-200.0,9.9e-05,2]
[342180710,1731551437972,-1000.0,9.9e-05,2]
[342180711,1731551437981,-428.74,9.9e-05,2]
[342180712,1731551437990,-1004.0,9.9e-05,2]
[342180713,1731551437999,-165.8,9.946e-05,2]
[342180714,1731551438008,-503.55892959,9.973e-05,2]
[342180715,1731551438018,-3877.1174765,9.992e-05,2]
[342180716,1731551438028,-510.0,9.993e-05,2]
[342180717,1731551438037,-186.360949,9.993e-05,2]
[342180718,1731551438047,-4064.8881883,9.993e-05,2]
[342180719,1731551438056,-4252.6589002,9.993e-05,2]
[342180720,1731551438065,-4440.4296121,9.993e-05,2]
[342180721,1731551438074,-70013.93310625,9.999e-05,2]
[342180722,1731551438419,-35371285.44403429,0.0001,2]
[342180724,1731551439581,-1823.4585476,0.0001,2]
[342180725,1731551439592,-25846.28733208,0.0001,2]
[342180726,1731551439603,-341.16884404,0.0001,2]
[342180727,1731551439709,-28019.2140588,0.0001,2]
[342180730,1731551442516,-682.36978236,0.0001,2]
[342180731,1731551442528,-377.338759,0.0001,2]
[342180732,1731551442642,-1829.96652278,0.0001,2]
[342180733,1731551442654,-9018.59284828,0.0001,2]
[342180734,1731551442760,-2364.80014535,0.0001,2]
[342180744,1731551445526,-2580.82409367,0.0001,2]
[342180745,1731551445537,-42377.66671244,0.0001,2]
[342180746,1731551445637,-2326.22831347,0.0001,2]
[342180747,1731551445648,-380.17238216,0.0001,2]
[342180748,1731551445776,-2428.45963624,0.0001,2]
[342180749,1731551445788,-62494.66044775,0.0001,2]
[342180750,1731551445799,-14983.6989897,0.0001,2]
[342180751,1731551445811,-11286.168,0.0001,2]
[342180752,1731551445822,-566.695,0.0001,2]
[342180753,1731551445833,-1189.72629252,0.0001,2]
[342180754,1731551445845,-4403.04167378,0.0001,2]
[342180755,1731551445856,-2394.89673906,0.0001,2]
[342180756,1731551445867,-11415.66389546,0.0001,2]
[342180757,1731551445878,-6132.62161919,0.0001,2]
[342180758,1731551561383,856.39,0.00027,60]
[342180759,1731551620156,500.0,0.00027,60]
[342180760,1731551630469,500.0,0.00027,60]
[342180761,1731551731756,5475.4853143,0.00027,60]
[342180762,1731551738423,1000.0,0.00027,120]
[342180763,1731551844825,5517.24,0.00027,60]
[342180764,1731551890437,850.0,0.00027,60]
[342180765,1731551897438,850.0,0.00027,60]
[342180766,1731551900075,850.0,0.00027,60]
[342180767,1731551964601,850.0,0.00027,60]
[342180768,1731551975812,850.0,0.00027,60]
[342180769,1731551981599,850.0,0.00027,60]
[342180770,1731551983580,850.0,0.00027,60]
[342180771,1731551996141,151.98,0.00016658,30]
[342180772,1731552019087,544.73,0.00027,60]
[342180773,1731552325263,850.0,0.00027,60]
[342180774,1731552326835,850.0,0.00027,60]
[342180775,1731552331523,850.0,0.00027,60]
[342180776,1731552353892,276.86585394,0.00027,60]
[342180777,1731552425841,156.121,0.000243,60]
[342180778,1731552426414,156.504,0.0002484,60]
[342180786,1731552615980,200.0,0.00027,60]
[342180787,1731552631763,-1479.19,8.219e-05,2]
[342180788,1731552631772,-174.21,8.219e-05,2]
[342180789,1731552631782,-200.0,8.633e-05,2]
[342180791,1731552631792,-250.0,8.661e-05,2]
[342180792,1731552631801,-300.0,8.769e-05,2]
[342180793,1731552631810,-15799.76982081,8.77e-05,2]
[342180794,1731552631995,-5575.18532901,8.77e-05,2]
[342180795,1731552632006,-2525.04485018,8.77e-05,2]
[342180796,1731552632016,-1000.0,8.833e-05,2]
[342180797,1731552632025,-752.64,8.929e-05,2]
[342180798,1731552632035,-160.72,8.959e-05,2]
[342180799,1731552632045,-250.0,9.067e-05,2]
[342180800,1731552632054,-177.01,9.119e-05,2]
[342180801,1731552632064,-166.39,9.153e-05,2]
[342180802,1731552632074,-177.01,9.164e-05,2]
[342180803,1731552632084,-150.0,9.178e-05,2]
[342180804,1731552632094,-150.0,9.198e-05,2]
[342180805,1731552632103,-181.74,9.199e-05,2]
[342180806,1731552632113,-500.0,9.199e-05,2]
[342180807,1731552632122,-7546.1778,9.199e-05,2]
[342180808,1731552632131,-165387.0683,9.199e-05,2]
[342180809,1731552632142,-423.72,9.211e-05,2]
[342180810,1731552632152,-1649.37,9.301e-05,2]
[342180811,1731552632162,-362.32,9.421e-05,2]
[342180812,1731552632171,-362.32,9.421e-05,2]
[342180813,1731552632180,-362.32,9.421e-05,2]
[342180814,1731552632191,-362.32,9.421e-05,2]
[342180815,1731552632201,-724.64,9.421e-05,2]
[342180816,1731552632211,-362.32,9.421e-05,2]
[342180817,1731552632220,-362.32,9.45e-05,2]
[342180818,1731552632230,-362.32,9.45e-05,2]
[342180819,1731552632240,-362.32,9.45e-05,2]
[342180820,1731552632250,-150.0,9.478e-05,2]
[342180821,1731552632259,-300.0,9.478e-05,2]
[342180822,1731552632268,-420.0,9.646e-05,2]
[342180823,1731552632277,-150.99,9.67e-05,2]
[342180824,1731552632286,-2718.14,9.67e-05,2]
[342180825,1731552632295,-9999.99,9.67e-05,2]
[342180826,1731552632304,-1000.0,9.7e-05,2]
[342180827,1731552632313,-1673.81919903,9.8e-05,2]
[342180828,1731552632323,-362.32,9.8e-05,2]
[342180829,1731552632333,-362.32,9.8e-05,2]
[342180830,1731552632343,-2500.0,9.8e-05,2]
[342180831,1731552632352,-362.32,9.89e-05,2]
[342180832,1731552632362,-200.0,9.9e-05,2]
[342180833,1731552632371,-100000.0,9.9e-05,2]
[342180834,1731552632381,-583062.4998,9.9e-05,2]
[342180835,1731552632392,-1000.0,9.9e-05,2]
[342180836,1731552632402,-200.0,9.9e-05,2]
[342180837,1731552632413,-1000.0,9.937e-05,2]
[342180838,1731552632422,-503.55892959,9.973e-05,2]
[342180839,1731552632432,-1526.3,9.98e-05,2]
[342180840,1731552632441,-416.9639432,9.992e-05,2]
[342180841,1731552632451,-1114.5091498,9.992e-05,2]
[342180842,1731552632461,-340.90259468,9.992e-05,2]
[342180843,1731552632471,-398.2190247,9.992e-05,2]
[342180844,1731552632480,-2450.3252967,9.992e-05,2]
[342180845,1731552632489,-440.5728605,9.993e-05,2]
[342180846,1731552632499,-464.1817779,9.993e-05,2]
[342180847,1731552632508,-487.7906952,9.993e-05,2]
[342180848,1731552632517,-1177.6137774,9.993e-05,2]
[342180849,1731552632526,-1240.7184051,9.993e-05,2]
[342180850,1731552632535,-1303.8230328,9.993e-05,2]
[342180851,1731552632545,-420.7665859,9.993e-05,2]
[342180852,1731552632554,-443.3141471,9.993e-05,2]
[342180853,1731552632563,-465.8617084,9.993e-05,2]
[342180854,1731552632573,-2591.6255197,9.993e-05,2]
[342180855,1731552632582,-2732.9257428,9.993e-05,2]
[342180856,1731552632591,-2874.2259659,9.993e-05,2]
[342180857,1731552632600,-559.0,9.999e-05,2]
[342180858,1731552632611,-50167.67479192,9.999e-05,2]
[342180859,1731552632626,-9419.43125858,9.999e-05,2]
[342180860,1731552632674,-470.79692717,9.999e-05,2]
[342180869,1731552637704,-838.0,9.999e-05,2]
[342180870,1731552637717,-612.87082591,9.999e-05,2]
[342180871,1731552637923,-3353.80772928,9.999e-05,2]
[342180872,1731552637935,-1887.91430283,9.999e-05,2]
[342180873,1731552637946,-3263.43727056,9.999e-05,2]
[342180874,1731552637955,-925.56534699,0.0001,2]
[342180875,1731552637966,-2442.60539867,0.0001,2]
[342180876,1731552637977,-4753.7200259,0.0001,2]
[342180877,1731552637988,-8967.15487216,0.0001,2]
[342180878,1731552637999,-643.434,0.0001,2]
[342180879,1731552638149,-35570537.0503953,0.0001,2]
[342180881,1731552638161,-792.61404006,0.0001,2]
[342180886,1731552639853,-20829.36038723,0.0001,2]
[342180887,1731552639863,-250.0,0.0001,2]
[342180888,1731552639873,-250.0,0.0001,2]
[342180889,1731552639883,-250.0,0.0001,2]
[342180890,1731552639894,-250.0,0.0001,2]
[342180891,1731552639904,-250.0,0.0001,2]
[342180892,1731552639914,-250.0,0.0001,2]
[342180893,1731552639923,-250.0,0.0001,2]
[342180894,1731552639933,-250.0,0.0001,2]
[342180895,1731552639942,-250.0,0.0001,2]
[342180896,1731552639951,-250.0,0.0001,2]
[342180897,1731552639961,-250.0,0.0001,2]
[342180898,1731552639971,-250.0,0.0001,2]
[342180899,1731552639985,-250.0,0.0001,2]
[342180900,1731552639995,-250.0,0.0001,2]
[342180901,1731552640004,-250.0,0.0001,2]
[342180902,1731552640013,-250.0,0.0001,2]
[342180903,1731552640022,-250.0,0.0001,2]
[342180904,1731552640031,-250.0,0.0001,2]
[342180905,1731552640041,-250.0,0.0001,2]
[342180906,1731552640050,-250.0,0.0001,2]
[342180907,1731552640059,-250.0,0.0001,2]
[342180908,1731552640069,-250.0,0.0001,2]
[342180909,1731552640078,-55691.00519144,0.0001,2]
[342180910,1731552640088,-1000.0,0.0001,2]
[342180911,1731552640097,-463.3,0.0001,2]
[342180912,1731552640107,-150.4493739,0.0001,2]
[342180913,1731552640116,-242.0,0.0001,2]
[342180914,1731552640125,-31025.06964681,0.0001,2]
[342180915,1731552640136,-804.19493044,0.0001,2]
[342180916,1731552642783,-4099.09560986,0.0001,2]
[342180917,1731552643027,-6659.69759241,0.0001,2]
[342180922,1731552645831,-1736.984905,0.0001,2]
[342180923,1731552645843,-4004.87094693,0.0001,2]
[342180924,1731552645855,-333.23201968,0.0001,2]
[342180925,1731552646036,-2192.1224385,0.0001,2]
[342180926,1731552646048,-2905.5331124,0.0001,2]
[342180927,1731552646059,-3329.47780248,0.0001,2]
[342180929,1731552656272,161.703,0.0002619,60]
[342180930,1731552677363,800.0,0.00026877,120]
[342180931,1731552698305,838.53056972,0.00027,60]
[342180932,1731552801297,500.0,0.00025276,120]
[342180933,1731552804836,202.535695,0.00025276,120]
[342180934,1731552816200,58084.58424025,0.00027,60]
[342180936,1731552842131,151.98,0.00016658,30]
[342180937,1731552948476,3587.62,0.00027,60]
[342180938,1731552995875,7197.84181759,0.00027,60]
[342180939,1731553016786,946.10307708,0.00027,60]
[342180940,1731553228510,1000.0,0.00027,60]
[342180941,1731553233738,1000.0,0.00027,60]
[342180942,1731553237481,1000.0,0.00027,60]
[342180943,1731553247106,610.0,0.00027,60]
[342180944,1731553401721,500.0,0.00024932,120]
[342180946,1731553525058,151.98,0.00016658,30]
[342180949,1731553831993,-811.67928063,7.825e-05,2]
[342180950,1731553832242,-3179.51067861,7.825e-05,2]
[342180951,1731553832253,-1616.18669621,7.825e-05,2]
[342180952,1731553832265,-18013.96895148,7.825e-05,2]
[342180953,1731553832276,-6543.410145,7.825e-05,2]
[342180980,1731553838055,-1469.24424807,7.825e-05,2]
[342180981,1731553838065,-1460.88,8.219e-05,2]
[342180982,1731553838075,-336.64,8.891e-05,2]
[342180983,1731553838085,-250.0,8.928e-05,2]
[342180984,1731553838097,-150.0,8.998e-05,2]
[342180985,1731553838107,-8489.13653753,8.999e-05,2]
[342180986,1731553838119,-2537.92305797,8.999e-05,2]
[342180987,1731553838130,-933.5483045,8.999e-05,2]
[342180988,1731553838139,-335.01581167,8.999e-05,2]
[342180989,1731553838151,-2164.98418833,8.999e-05,2]
[342180990,1731553838160,-500.0,9.073e-05,2]
[342180991,1731553838169,-5000.0,9.098e-05,2]
[342180992,1731553838179,-5000.0,9.098e-05,2]
[342180993,1731553838188,-5000.0,9.098e-05,2]
[342180994,1731553838197,-5000.0,9.098e-05,2]
[342180995,1731553838206,-5000.0,9.098e-05,2]
[342180996,1731553838215,-5000.0,9.098e-05,2]
[342180997,1731553838225,-5000.0,9.098e-05,2]
[342180998,1731553838234,-5000.0,9.098e-05,2]
[342180999,1731553838243,-5000.0,9.098e-05,2]
[342181000,1731553838252,-5000.0,9.098e-05,2]
[342181001,1731553838264,-5000.0,9.098e-05,2]
[342181002,1731553838273,-5000.0,9.098e-05,2]
[342181003,1731553838282,-5000.0,9.098e-05,2]
[342181004,1731553838294,-5000.0,9.098e-05,2]
[342181005,1731553838305,-5000.0,9.098e-05,2]
[342181006,1731553838315,-5000.0,9.098e-05,2]
[342181007,1731553838324,-5000.0,9.098e-05,2]
[342181008,1731553838334,-5000.0,9.098e-05,2]
[342181010,1731553838345,-5000.0,9.098e-05,2]
[342181011,1731553838354,-5000.0,9.098e-05,2]
[342181012,1731553838364,-2772.41455499,9.098e-05,2]
[342181013,1731553838373,-1858.22,9.099e-05,2]
[342181014,1731553838383,-500.0,9.099e-05,2]
[342181015,1731553838393,-100000.0,9.099e-05,2]
[342181016,1731553838403,-583062.4998,9.099e-05,2]
[342181017,1731553838412,-166.39,9.113e-05,2]
[342181018,1731553838421,-6555.57,9.142e-05,2]
[342181019,1731553838431,-200.0,9.165e-05,2]
[342181020,1731553838440,-250.0,9.195e-05,2]
[342181021,1731553838450,-1000.0,9.305e-05,2]
[342181022,1731553838460,-197.88,9.324e-05,2]
[342181023,1731553838469,-432.63,9.33e-05,2]
[342181024,1731553838480,-23900.0,9.346e-05,2]
[342181025,1731553838491,-428.74,9.478e-05,2]
[342181026,1731553838500,-1004.0,9.6e-05,2]
[342181027,1731553838510,-3078.44,9.67e-05,2]
[342181028,1731553838520,-999.99,9.67e-05,2]
[342181029,1731553838529,-3823.55,9.67e-05,2]
[342181030,1731553838538,-167.43,9.692e-05,2]
[342181031,1731553838548,-255.0,9.898e-05,2]
[342181032,1731553838557,-200.0,9.9e-05,2]
[342181033,1731553838566,-2818.4835,9.9e-05,2]
[342181034,1731553838576,-1000.0,9.9e-05,2]
[342181035,1731553838585,-150.13,9.977e-05,2]
[342181036,1731553838596,-166.5610167,9.993e-05,2]
[342181037,1731553838606,-1094.233517,9.993e-05,2]
[342181038,1731553838615,-195.5949958,9.993e-05,2]
[342181039,1731553838624,-832.805084,9.993e-05,2]
[342181040,1731553838633,-383.6725725,9.993e-05,2]
[342181041,1731553838642,-450.9788645,9.993e-05,2]
[342181042,1731553838651,-35141661.04089518,0.0001,2]
[342181043,1731553838670,-2581.87713888,0.0001,2]
[342181045,1731553841307,-987.0319332,0.0001,2]
[342181046,1731553841319,-498.0387929,0.0001,2]
[342181047,1731553841385,-4037.87726465,0.0001,2]
[342181048,1731553841397,-1802.0495176,0.0001,2]
[342181049,1731553843251,-2757.86023564,0.0001,2]
[342181054,1731553845949,-17605.49921877,0.0001,2]
[342181125,1731553895874,6917.0,0.0002699,60]
[342181127,1731554108225,3195197.37151657,0.00027,60]
[342181128,1731554122980,3700000.0,0.00025,120]
[342181129,1731554268644,151.98,0.00016658,30]
[342181164,1731555033776,-300.0,8.218e-05,2]
[342181165,1731555033787,-150.0,8.218e-05,2]
[342181166,1731555033799,-154.32337629,8.219e-05,2]
[342181167,1731555033832,-4262.86975816,8.219e-05,2]
[342181168,1731555033844,-1387.83,8.219e-05,2]
[342181169,1731555033855,-115148.767471,8.219e-05,2]
[342181170,1731555033866,-168.32,8.819e-05,2]
[342181171,1731555033877,-158.31,8.868e-05,2]
[342181172,1731555033889,-2500.0,8.899e-05,2]
[342181173,1731555033899,-1239.59730046,8.998e-05,2]
[342181174,1731555033910,-245000.0,8.999e-05,2]
[342181175,1731555033922,-1209.23904894,9e-05,2]
[342181176,1731555033933,-420.0,9.04e-05,2]
[342181177,1731555033944,-255.0,9.04e-05,2]
[342181178,1731555033955,-1000.0,9.055e-05,2]
[342181179,1731555033967,-250.0,9.062e-05,2]
[342181180,1731555033979,-4668.59703571,9.079e-05,2]
[342181181,1731555033993,-613.77,9.079e-05,2]
[342181182,1731555034862,-11004.53444641,9.079e-05,2]
[342181183,1731555034875,-7613.09851788,9.079e-05,2]
[342181184,1731555034885,-200.0,9.108e-05,2]
[342181185,1731555034896,-166.41,9.229e-05,2]
[342181186,1731555034907,-250.0,9.252e-05,2]
[342181187,1731555034917,-167.43,9.464e-05,2]
[342181188,1731555034928,-999.99,9.67e-05,2]
[342181195,1731555035811,-3078.44,9.67e-05,2]
[342181196,1731555035840,-3823.55,9.67e-05,2]
[342181197,1731555035881,-150.13,9.752e-05,2]
[342181198,1731555035912,-200.0,9.9e-05,2]
[342181199,1731555035924,-109193.66762378,9.9e-05,2]
[342181200,1731555035936,-143236.589855,9.9e-05,2]
[342181201,1731555035948,-1897.36364885,9.9e-05,2]
[342181202,1731555035995,-398.2,9.9e-05,2]
[342181203,1731555036007,-8332.049264,9.9e-05,2]
[342181204,1731555036058,-1396.50221221,9.9e-05,2]
[342181205,1731555038142,-800.0,9.9e-05,2]
[342181206,1731555038155,-1264.43557993,9.9e-05,2]
[342181207,1731555038296,-2927.12184367,9.9e-05,2]
[342181208,1731555038308,-651.52929213,9.9e-05,2]
[342181209,1731555038320,-1001.48365479,9.9e-05,2]
[342181210,1731555038333,-341.38082856,9.9e-05,2]
[342181211,1731555038345,-311622.17599708,9.9e-05,2]
[342181212,1731555038355,-2818.4835,9.9e-05,2]
[342181213,1731555038364,-500.0,9.9e-05,2]
[342181214,1731555038376,-100000.0,9.9e-05,2]
[342181215,1731555038387,-1000.0,9.9e-05,2]
[342181216,1731555038396,-587.0,9.944e-05,2]
[342181217,1731555038405,-158.31,9.977e-05,2]
[342181218,1731555038415,-641.69,9.984e-05,2]
[342181219,1731555038425,-832.8050835,9.992e-05,2]
[342181220,1731555038435,-177.0299995,9.992e-05,2]
[342181221,1731555038444,-339.9572755,9.992e-05,2]
[342181222,1731555038453,-182.3722529,9.992e-05,2]
[342181223,1731555038463,-616.8255431,9.992e-05,2]
[342181224,1731555038472,-166.5610172,9.992e-05,2]
[342181225,1731555038482,-198.4211245,9.993e-05,2]
[342181226,1731555038491,-219.8122494,9.993e-05,2]
[342181227,1731555038500,-381.0354463,9.993e-05,2]
[342181228,1731555038510,-422.1136171,9.993e-05,2]
[342181229,1731555038519,-182.3722529,9.993e-05,2]
[342181230,1731555038528,-182.3722529,9.993e-05,2]
[342181231,1731555038538,-695.5969317,9.993e-05,2]
[342181232,1731555038548,-774.3683204,9.993e-05,2]
[342181233,1731555038558,-7176.07018319,9.999e-05,2]
[342181234,1731555038567,-870.39949208,9.999e-05,2]
[342181235,1731555038580,-503.0,0.0001,2]
[342181236,1731555038590,-34862022.56790645,0.0001,2]
[342181240,1731555040010,-321.41746848,8.899e-05,2]
[342181247,1731555043316,-2636.60733152,8.899e-05,2]
[342181248,1731555043325,-46196.96627147,8.899e-05,2]
[342181249,1731555043336,-931.62294016,8.899e-05,2]
[342181433,1731555046205,-6398.80000006,8.899e-05,2]
[342181446,1731555603917,3904.0,0.0002161,120]
[342181458,1731555948599,-1360.63,8.219e-05,2]
[342181459,1731555948622,-444.77588666,8.623e-05,2]
[342181460,1731555948647,-168.32,8.623e-05,2]
[342181461,1731555949038,-6578.0,8.635e-05,2]
[342181462,1731555949060,-176.93880685,8.721e-05,2]
[342181463,1731555949083,-1277.654,8.721e-05,2]
[342181464,1731555949109,-35965.76187539,8.789e-05,2]
[342181465,1731555949132,-150.0,8.798e-05,2]
[342181466,1731555952787,-150.0,8.799e-05,2]
[342181467,1731555953067,-150.0,8.799e-05,2]
[342181468,1731555953251,-150.0,8.799e-05,2]
[342181469,1731555953418,-150.0,8.799e-05,2]
[342181470,1731555953572,-150.0,8.799e-05,2]
[342181471,1731555953744,-150.0,8.799e-05,2]
[342181472,1731555953920,-150.0,8.799e-05,2]
[342181473,1731555954075,-150.0,8.799e-05,2]
[342181474,1731555954253,-150.0,8.799e-05,2]
[342181475,1731555954412,-150.0,8.799e-05,2]
[342181476,1731555954570,-150.0,8.799e-05,2]
[342181477,1731555954741,-150.0,8.799e-05,2]
[342181478,1731555954922,-58.22,8.799e-05,2]
[342181479,1731555954944,-91.78,8.799e-05,2]
[342181480,1731555955083,-150.0,8.799e-05,2]
[342181481,1731555955250,-150.0,8.799e-05,2]
[342181482,1731555955410,-150.0,8.799e-05,2]
[342181483,1731555955569,-57.3116,8.799e-05,2]
[342181484,1731555955594,-92.6884,8.799e-05,2]
[342181485,1731555957425,-150.0,8.799e-05,2]
[342181486,1731555957460,-150.0,8.799e-05,2]
[342181487,1731555957485,-150.0,8.799e-05,2]
[342181488,1731555957514,-150.0,8.799e-05,2]
[342181489,1731555957562,-150.0,8.799e-05,2]
[342181490,1731555957595,-150.0,8.799e-05,2]
[342181491,1731555957626,-150.0,8.799e-05,2]
[342181492,1731555957662,-150.0,8.799e-05,2]
[342181493,1731555957690,-150.0,8.799e-05,2]
[342181494,1731555957722,-150.0,8.799e-05,2]
[342181495,1731555957760,-150.0,8.799e-05,2]
[342181496,1731555957808,-150.0,8.799e-05,2]
[342181497,1731555957847,-150.0,8.799e-05,2]
[342181498,1731555960185,-150.0,8.799e-05,2]
[342181499,1731555960407,-229.29211911,8.799e-05,2]
[342181500,1731555963785,-150.0,8.799e-05,2]
[342181501,1731555964093,-150.0,8.799e-05,2]
[342181502,1731555964247,-150.0,8.799e-05,2]
[342181503,1731555964393,-150.0,8.799e-05,2]
[342181504,1731555964547,-150.0,8.799e-05,2]
[342181505,1731555964710,-218.77570066,8.799e-05,2]
[342181506,1731555964872,-150.0,8.799e-05,2]
[342181507,1731555965024,-150.0,8.799e-05,2]
[342181508,1731556070924,2500.0,8.798e-05,2]
[342181509,1731556082435,150.0,8.798e-05,2]
[342181510,1731556087948,1279.0,8.722e-05,2]
[342181511,1731556096416,300.0,8.798e-05,2]
[342181512,1731556102309,648.4194311,8.699e-05,2]
[342181519,1731556232301,-300.0,8.698e-05,2]
[342181521,1731556232316,-26341.0967689,8.699e-05,2]
[342181522,1731556232328,-90804.68085488,8.699e-05,2]
[342181526,1731556232349,-143236.589855,8.699e-05,2]
[342181669,1731556239879,-10729.9312,8.699e-05,2]
[342181671,1731556239893,-2178.51267961,8.699e-05,2]
[342181679,1731556239955,-4222.96911794,8.699e-05,2]
[342181681,1731556239967,-511.523761,8.699e-05,2]
[342181683,1731556239983,-7238.11229426,8.699e-05,2]
[342181685,1731556239994,-3125.94448,8.699e-05,2]
[342181688,1731556240006,-1183.09863459,8.699e-05,2]
[342181690,1731556240017,-535967.81524972,8.699e-05,2]
[342181692,1731556240027,-24635.15348023,8.799e-05,2]
[342181694,1731556240037,-3565.333,8.799e-05,2]
[342181696,1731556240047,-9881.0106,8.799e-05,2]
[342181698,1731556240057,-23841.8511,8.799e-05,2]
[342181700,1731556240066,-5255.9355,8.799e-05,2]
[342181702,1731556240076,-23900.0,8.854e-05,2]
[342181704,1731556240088,-165.12277081,8.873e-05,2]
[342181706,1731556240104,-500.0,8.873e-05,2]
[342181708,1731556240114,-330.00806718,8.873e-05,2]
[342181710,1731556240123,-160.49626658,8.873e-05,2]
[342181712,1731556240133,-503.59961526,8.873e-05,2]
[342181714,1731556240143,-503.83200678,8.873e-05,2]
[342181716,1731556240153,-5000.0,8.898e-05,2]
[342181718,1731556240163,-5000.0,8.898e-05,2]
[342181720,1731556240174,-5000.0,8.898e-05,2]
[342181722,1731556240184,-5000.0,8.898e-05,2]
[342181724,1731556240194,-5000.0,8.898e-05,2]
[342181726,1731556240204,-5000.0,8.898e-05,2]
[342181728,1731556240214,-5000.0,8.898e-05,2]
[342181730,1731556240223,-5000.0,8.898e-05,2]
[342181732,1731556240233,-5000.0,8.898e-05,2]
[342181734,1731556240243,-5000.0,8.898e-05,2]
[342181736,1731556240254,-5000.0,8.898e-05,2]
[342181738,1731556240264,-5000.0,8.898e-05,2]
[342181740,1731556240274,-5000.0,8.898e-05,2]
[342181742,1731556240284,-5000.0,8.898e-05,2]
[342181744,1731556240293,-5000.0,8.898e-05,2]
[342181746,1731556240308,-5000.0,8.898e-05,2]
[342181748,1731556240327,-5000.0,8.898e-05,2]
[342181750,1731556240350,-5000.0,8.898e-05,2]
[342181752,1731556240371,-5000.0,8.898e-05,2]
[342181754,1731556240392,-5000.0,8.898e-05,2]
[342181756,1731556240402,-2772.41455499,8.898e-05,2]
[342181758,1731556240412,-46472.61078831,8.899e-05,2]
[342181760,1731556240421,-583062.4998,8.899e-05,2]
[342181762,1731556240430,-2818.4835,8.899e-05,2]
[342181764,1731556240440,-500.0,8.899e-05,2]
[342181766,1731556240451,-250.0,8.9e-05,2]
[342181767,1731556240460,-166.39,8.918e-05,2]
[342181769,1731556240470,-1000.0,8.997e-05,2]
[342181771,1731556240480,-191.66,9.019e-05,2]
[342181773,1731556240489,-1816.32,9.053e-05,2]
[342181775,1731556240498,-250.0,9.14e-05,2]
[342181777,1731556240508,-150.0,9.178e-05,2]
[342181779,1731556240518,-500.0,9.421e-05,2]
[342181781,1731556240527,-6555.57,9.467e-05,2]
[342181783,1731556240536,-428.74,9.478e-05,2]
[342181785,1731556240545,-420.0,9.568e-05,2]
[342181787,1731556240554,-1004.0,9.6e-05,2]
[342181789,1731556240564,-200.0,9.9e-05,2]
[342181791,1731556240574,-89352.11970034,9.91e-05,2]
[342181793,1731556240584,-477.1611923,9.992e-05,2]
[342181795,1731556240593,-246.4702368,9.992e-05,2]
[342181797,1731556240602,-358.1306688,9.992e-05,2]
[342181799,1731556240612,-166.5610167,9.993e-05,2]
[342181801,1731556240621,-577.7818665,9.993e-05,2]
[342181803,1731556240631,-678.4025406,9.993e-05,2]
[342181805,1731556240640,-779.0232148,9.993e-05,2]
[342181807,1731556240649,-301.2550337,9.993e-05,2]
[342181809,1731556240659,-356.0398306,9.993e-05,2]
[342181811,1731556240668,-410.8246274,9.993e-05,2]
[342181813,1731556240677,-437.7350714,9.993e-05,2]
[342181815,1731556240686,-517.339474,9.993e-05,2]
[342181817,1731556240695,-596.9438765,9.993e-05,2]
[342181819,1731556240704,-7176.07018319,9.999e-05,2]
[342181821,1731556240714,-34502070.53415551,0.0001,2]
[342181824,1731556241088,-5920.25158562,0.0001,2]
[342181825,1731556241139,-3660.68358044,0.0001,2]
[342181826,1731556241150,-3511.01877038,0.0001,2]
[342181827,1731556241161,-3575.75337845,0.0001,2]
[342181828,1731556241172,-916.10504808,0.0001,2]
[342181829,1731556241183,-3473.97080918,0.0001,2]
[342181830,1731556241348,-428.122495,0.0001,2]
[342181831,1731556241360,-4158.49282427,0.0001,2]
[342181832,1731556241404,-9738.22283955,0.0001,2]
[342181833,1731556241415,-746.82266818,0.0001,2]
[342181834,1731556241427,-3760.31629213,0.0001,2]
[342181835,1731556241545,-2226.53711875,0.0001,2]
[342181836,1731556241556,-699.81412927,0.0001,2]
[342181837,1731556243960,-167.0,9.102e-05,2]
[342181838,1731556243970,-445.5,0.0001,2]
[342181839,1731556243982,-4230.89632567,0.0001,2]